[Event "Summer Chess Classic-B 2022"]
[Site "Saint Louis"]
[Date "2022.06.05"]
[Round "4.4"]
[White "Burke, John M"]
[Black "Checa, Nicolas"]
[Result "1-0"]
[ECO "C11"]
[WhiteElo "2579"]
[BlackElo "2533"]
[Annotator "TA"]
[PlyCount "119"]
[EventDate "2022.05.31"]
[EventType "tourn"]
[EventCountry "USA"]
[SourceTitle "playchess.com"]
[Source "ChessBase"]
[SourceQuality "1"]
[TimeControl "40/5400+30:1800+30"]

{[%evp 20,119,29,30,30,28,26,37,21,31,11,21,31,0,36,31,31,39,31,0,0,0,0,0,0,0,0,3,145,139,138,114,97,105,266,243,270,268,322,314,460,461,514,497,460,541,495,420,453,411,1222,406,408,400,345,399,384,347,670,658,2951,252,2805,2929,3091,2370,5920,5904,2332,2670,3101,2939,2636,1795,1640,1754,11250,12758,12571,2140,12823,11177,12829,12827,12820,12824,12830,12831,12833,12833,12827,12829,12835,12834,12829,2140,12837,12837,12835,12835,12837,12838]} 1. e4 {[%emt 0:00:03]} e6 {[%emt 0:02:47]} 2. d4 {[%emt 0:00:14]} d5 {[%emt 0:00:13]} 3. Nc3 {[%emt 0:00:10]} Nf6 {[%emt 0:00:15]} 4. e5 {[%emt 0:00:15]} Nfd7 {[%emt 0:00:04]} 5. f4 {[%emt 0:00:10]} c5 {[%emt 0:00:09]} 6. Nf3 {[%emt 0:00:05]} Nc6 {[%emt 0:00:04]} 7. Be3 {[%emt 0:00:20][%cal Bc1e3,Be3d4,Bd4b6][%mdl 32]} cxd4 {[%emt 0:00:24]} 8. Nxd4 {[%emt 0:00:05]} Qb6 {[%emt 0:00:03]} 9. Qd2 {[%emt 0:01:03]} Qxb2 {[%emt 0:00:18]} 10. Rb1 {[%emt 0:00:04]} Qa3 {[%emt 0:00:03]} 11. Bb5 $1 {[%emt 0:00:28]} Nxd4 {[%emt 0:00:07] C11: French: Classical System: 4 e5 and 4 Bg5 dxe4.} 12. Bxd4 {[%emt 0:00:04][%cal Of4f5] Threatening f5!} (12. Qxd4 a6 13. Bxd7+ Bxd7 14. Rxb7 Rc8 $17) 12... a6 {[%emt 0:00:05]} 13. Bxd7+ {[%emt 0:00:33]} Bxd7 {[%emt 0:00:05] White is slightly better.} 14. Rb3 {[%emt 0:00:04]} Qe7 {[%emt 0:00:05]} 15. Rxb7 {[%emt 0:00:05]} Qh4+ {[%emt 0:00:03]} 16. g3 {[%emt 0:03:21]} Qd8 {[%emt 0:00:18]} 17. Bb6 {[%emt 0:00:24]} Qc8 {[%emt 0:00:05]} 18. Rc7 {[%emt 0:00:03]} Qd8 {[%emt 0:00:03][%cal Of8c5]} 19. Qe3 {[%emt 0:00:48][%cal Of4f5] Inhibits Bc5.} (19. Qd4 $5 {[%cal Rf4f5]}) 19... Bb4 {[%emt 0:19:03]} 20. a3 $36 {[%emt 0:05:31][%mdl 2048] [#] White has the initiative.} Be7 $146 {[%emt 0:05:07]} ({Predecessor:} 20... Bxa3 21. f5 Rc8 22. Ra7 Qe7 23. O-O Bc5 24. Bxc5 Qxc5 25. Qxc5 Rxc5 26. Na4 Rc8 {1-0 (38) Ivic,V (2571)-Bluebaum,M (2674) Reykjavik 2021}) 21. f5 {[%emt 0:09:14][%cal Of5f6]} O-O {[%emt 0:15:27]} 22. O-O {[%emt 0:11:56][%cal Of5f6] Threatens to win with f6!} Bg5 {[%emt 0:03:17] Against f6} 23. Qd4 {[%emt 0:06:40]} exf5 {[%emt 0:03:22] [#]} (23... Rb8 $11) 24. h4 $1 $16 {[%emt 0:10:05]} ({Weaker is} 24. Qxd5 Be6 25. Qf3 Qd2 $17) 24... Bh6 {[%emt 0:09:14]} 25. Nxd5 {[%emt 0:00:53]} Be6 {[%emt 0:02:15]} 26. c4 {[%emt 0:01:26][%cal Oc7f7]} Qb8 $2 {[%emt 0:01:35] Loses the game.} (26... Rb8 $16) 27. Ne7+ $18 {[%emt 0:10:37]} Kh8 {[%emt 0:00:12]} 28. Nxf5 {[%emt 0:02:04]} Bxf5 {[%emt 0:13:07]} 29. Rxf5 {[%emt 0:00:19]} Rd8 {[%emt 0:00:05]} (29... Qe8 $142 30. Qd5 Qe6 31. Qxe6 (31. Rcxf7 Qxb6+ 32. Kh2 g6 $11) 31... fxe6 32. Rxf8+ Rxf8) 30. Qc5 {[%emt 0:01:39]} Rd3 {[%emt 0:00:45] White must now prevent ...Be3+.} 31. Kh2 {[%emt 0:28:25]} Be3 {[%emt 0:01:36] [#]} 32. Qc6 $1 {[%emt 0:00:04][%cal Oc7f7]} Bxb6 {[%emt 0:00:12]} 33. Rcxf7 {[%emt 0:00:50][%cal Oc6a8] Intending Qxa8! and mate. Active counter play!} Rd2+ {[%emt 0:03:01]} 34. Kh3 {[%emt 0:00:25][%cal Oc6a8] White threatens Qxa8! and mate.} Rd8 {[%emt 0:05:36]} (34... Rf2 $142 35. Rxf2 Bxf2) 35. Rb7 {[%emt 0:00:25]} (35. e6 $142) 35... Qc8 {[%emt 0:00:09]} 36. Qxc8 {[%emt 0:00:05]} Raxc8 {[%emt 0:02:40]} 37. Rxb6 {[%emt 0:00:04][%cal Bb7b6,Bb6a6,Ba6a7][%mdl 32]} Rxc4 {[%emt 0:01:24]} 38. Rxa6 {[%emt 0:00:19][%mdl 4096] Endgame KRR-KRR} Kg8 $2 {[%emt 0:03:24]} (38... Re4 39. Ra7 Re3) 39. Ra7 {[%emt 0:01:38] And now Rff7 would win.} Rf8 {[%emt 0:00:43] Prevents Rff7.} 40. Rxf8+ {[%emt 0:01:35]} Kxf8 {[%emt 0:00:01] KR-KR} 41. e6 {[%emt 0:30:43][%cal Be5e6,Be6e7][%mdl 32] White is clearly winning.} Rc6 {[%emt 0:30:44]} 42. e7+ {[%emt 0:04:31]} ({Less strong is} 42. Rf7+ Kg8 43. Ra7 (43. Re7 Kf8 $18) 43... Rxe6 $18) 42... Ke8 {[%emt 0:00:21]} 43. g4 {[%emt 0:01:24]} Rc3+ {[%emt 0:08:30]} 44. Kg2 {[%emt 0:00:14]} Rc4 {[%emt 0:00:10]} 45. Kg3 {[%emt 0:00:52] aiming for a4.} Rc3+ {[%emt 0:00:40]} 46. Kf4 {[%emt 0:00:15] a4 is the strong threat.} Rc4+ {[%emt 0:00:10]} 47. Kf5 {[%emt 0:02:14] Hoping for a4.} Rc5+ {[%emt 0:00:15]} 48. Ke6 {[%emt 0:00:00]} Rc6+ {[%emt 0:00:00]} 49. Ke5 {[%emt 0:00:00]} (49. Kd5 $142 Rf6 50. Ke5) 49... Rc4 {[%emt 0:00:00]} 50. Kd6 {[%emt 0:00:00]} Rd4+ {[%emt 0:00:00]} 51. Ke6 {[%emt 0:00:00] Ra8+ would kill now.} Re4+ {[%emt 0:00:00]} 52. Kf5 {[%emt 0:00:00]} Rc4 {[%emt 0:00:00]} 53. a4 {[%emt 0:00:00][%cal Ba3a4,Ba4a5,Ba5a6][%mdl 32]} Rc1 {[%emt 0:00:00]} 54. a5 {[%emt 0:00:00]} Rf1+ {[%emt 0:00:00]} 55. Ke4 {[%emt 0:00:00]} Rg1 {[%emt 0:00:00]} 56. Kf3 {[%emt 0:00:00]} Rf1+ {[%emt 0:00:00]} 57. Ke2 {[%emt 0:00:00]} Rf4 {[%emt 0:00:00]} 58. a6 {[%emt 0:00:00]} Ra4 {[%emt 0:00:00]} 59. g5 {[%emt 0:00:00]} Ra3 {[%emt 0:00:00]} 60. h5 {[%emt 0:00:00] Weighted Error Value: White=0.20 (precise) /Black=0.43} 1-0

[Event "Summer Chess Classic-B 2022"]
[Site "Saint Louis"]
[Date "2022.06.05"]
[Round "4.5"]
[White "Ali Marandi, Cemil Can"]
[Black "Vazquez, Guillermo"]
[Result "1/2-1/2"]
[ECO "B13"]
[WhiteElo "2532"]
[BlackElo "2557"]
[Annotator "TA"]
[PlyCount "81"]
[EventDate "2022.05.31"]
[EventType "tourn"]
[EventCountry "USA"]
[SourceTitle "playchess.com"]
[Source "ChessBase"]
[SourceQuality "1"]
[TimeControl "40/5400+30:1800+30"]

{[%evp 14,81,10,9,12,10,35,0,0,0,0,0,8,7,22,22,16,16,10,20,10,7,22,20,43,46,58,46,48,35,88,87,63,0,0,0,50,57,53,59,55,0,0,0,0,0,0,0,0,0,0,0,112,0,0,0,145,152,162,148,175,170,156,160,147,169,118,0,0,0]} 1. e4 {[%emt 0:00:03]} c6 {[%emt 0:00:37]} 2. d4 {[%emt 0:00:06]} d5 {[%emt 0:00:09]} 3. exd5 {[%emt 0:00:04]} cxd5 {[%emt 0:00:08]} 4. c4 {[%emt 0:00:06]} Nf6 {[%emt 0:00:32]} 5. Nc3 {[%emt 0:00:07]} Nc6 {[%emt 0:01:14]} 6. Nf3 {[%emt 0:00:09]} Bg4 {[%emt 0:00:54]} 7. Be3 {[%emt 0:00:33]} e6 {[%emt 0:00:59]} 8. c5 {[%emt 0:00:21]} a6 {[%emt 0:06:31] B13: Caro-Kann: Exchange Variation and Panov-Botvinnik Attack.} 9. Be2 {[%emt 0:10:33] [#]} g6 $146 {[%emt 0:06:52]} ({Predecessor:} 9... Be7 10. Na4 Nd7 11. Nc3 Bh5 12. a3 Qc7 13. b4 Nf6 14. Qa4 O-O 15. Nd2 Bxe2 16. Nxe2 {½-½ (37) Djerroud,C (1300)-Yousfi,Y (1551) Oran 2018}) 10. Ng1 {[%emt 0:09:36]} (10. h3 $5 {[%cal Rh3g4]} Bxf3 11. Bxf3 $11) 10... Bxe2 {[%emt 0:11:49]} 11. Ngxe2 {[%emt 0:00:13]} Bg7 {[%emt 0:00:28]} 12. h3 {[%emt 0:00:18]} O-O {[%emt 0:00:48]} 13. O-O {[%emt 0:00:22]} Nd7 {[%emt 0:08:58]} 14. b4 {[%emt 0:09:30]} Nxb4 {[%emt 0:10:06]} 15. Rb1 {[%emt 0:00:36]} Nc6 {[%emt 0:00:18]} 16. Rxb7 {[%emt 0:00:18]} Na5 {[%emt 0:00:09]} 17. Rb1 {[%emt 0:00:29]} Nc4 {[%emt 0:00:13]} 18. Qa4 {[%emt 0:03:35]} Nxe3 {[%emt 0:04:05]} 19. fxe3 {[%emt 0:00:28]} Bh6 {[%emt 0:00:22]} 20. Nf4 {[%emt 0:05:39]} Nf6 {[%emt 0:04:27]} 21. Rb7 {[%emt 0:03:46]} g5 {[%emt 0:06:05]} (21... Nh5 $14) 22. Nd3 $16 {[%emt 0:11:57] Strongly threatening Ne5.} g4 {[%emt 0:00:09]} 23. Nf4 {[%emt 0:04:59]} ({White should play} 23. Ne5 $1 $14 Bxe3+ 24. Kh2) 23... gxh3 $1 $11 {[%emt 0:00:37]} 24. gxh3 {[%emt 0:03:07]} Bxf4 {[%emt 0:06:04]} (24... Kh8 $11) 25. Rxf4 $14 {[%emt 0:00:29][%cal Bf1f4,Bf4g4,Bg4g2][%mdl 32]} (25. exf4 Kh8 26. Qd1 Rg8+ 27. Kh1 Qf8 $11) 25... Nh5 $1 {[%emt 0:00:08]} 26. Rg4+ {[%emt 0:03:18]} Kh8 {[%emt 0:00:10]} 27. Qd1 {[%emt 0:10:04]} ({White should try} 27. Qc6 $1 $14) 27... f5 $1 $11 {[%emt 0:04:04]} 28. Rg2 {[%emt 0:00:42][%cal Ob7h7]} Qh4 {[%emt 0:00:55]} 29. Qf3 $36 {[%emt 0:01:14][%mdl 2048] Black is under pressure.} Rg8 {[%emt 0:01:14]} 30. Rbb2 {[%emt 0:00:42]} Nf6 {[%emt 0:07:46]} 31. Na4 {[%emt 0:02:05]} Raf8 {[%emt 0:04:13]} 32. Nb6 {[%emt 0:04:18] Active counter play!} Ne4 {[%emt 0:06:17] [#]} (32... Qe1+ $11 33. Kh2 Qh4) 33. Kh2 {[%emt 0:02:23]} (33. Qf4 $1 $16 {[%cal Rf4h4]} Qxh3 34. Qe5+ (34. Nd7 Ng3 $11) 34... Nf6 35. Nd7 (35. Qxe6 Qf3 $11)) 33... Ng5 {[%emt 0:00:45]} 34. Qg3 {[%emt 0:00:17] aiming for Nd7.} Qe4 {[%emt 0:04:56]} (34... Qh5 $11 {keeps the balance.} 35. Rbf2 (35. Qe5+ $2 Rg7 $19) 35... Rf7) 35. Rbf2 $16 {[%emt 0:01:00] Black must now prevent Nd7.} f4 {[%emt 0:00:09]} 36. exf4 {[%emt 0:00:47]} Nf7 {[%emt 0:00:05]} 37. Qh4 {[%emt 0:02:00] [#] Qf6+ would kill now.} Qxd4 {[%emt 0:02:13]} 38. Nd7 {[%emt 0:02:22]} Rxg2+ {[%emt 0:01:47]} 39. Rxg2 {[%emt 0:00:07]} Rg8 {[%emt 0:00:04]} 40. Rxg8+ {[%emt 0:04:33]} (40. Qf6+ $16 Qxf6 41. Rxg8+ (41. Nxf6 Rc8 $11) 41... Kxg8 42. Nxf6+ Kg7 43. Nd7) 40... Kxg8 $11 {[%emt 0:00:01]} 41. Qg4+ {[%emt 0:32:40] Weighted Error Value: White=0.15 (very precise) /Black=0.20 (precise)} 1/2-1/2

[Event "Summer Chess Classic-B 2022"]
[Site "Saint Louis"]
[Date "2022.06.06"]
[Round "5.1"]
[White "Vazquez, Guillermo"]
[Black "Harutyunyan, Tigran K."]
[Result "1-0"]
[ECO "C54"]
[WhiteElo "2557"]
[BlackElo "2550"]
[Annotator "TA"]
[PlyCount "205"]
[EventDate "2022.05.31"]
[EventType "tourn"]
[EventCountry "USA"]
[SourceTitle "playchess.com"]
[Source "ChessBase"]
[SourceQuality "1"]
[TimeControl "40/5400+30:1800+30"]

{[%evp 26,205,9,0,12,15,30,37,35,28,58,55,55,55,78,84,91,85,127,76,77,81,129,127,132,132,140,130,135,118,132,113,173,152,154,153,152,152,160,152,153,153,168,156,162,167,156,153,159,158,158,158,159,161,161,161,162,162,178,173,170,168,226,241,313,306,314,318,312,314,337,314,328,329,312,282,385,374,394,312,308,291,308,285,383,325,372,354,443,457,464,464,449,410,405,392,399,314,314,306,409,409,551,528,530,376,376,383,383,407,503,520,520,521,510,496,495,476,560,541,564,557,537,519,574,550,505,462,864,862,767,691,644,601,640,449,3874,3789,3953,2360,12791,12458,12798,12800,12743,12089,7440,7380,5860,5716,4132,1541,29972,29973,29975,29976,29977,29978,29978,29972,29972,29973,29972,29971,29973,29974,29974,29975,29982,29983,29987,29988,29988,29989,29989,29990,29996,29992,29995,29996,29997,29998]} 1. e4 {[%emt 0:00:10]} e5 {[%emt 0:00:14]} 2. Nf3 {[%emt 0:00:29]} Nc6 {[%emt 0:00:09]} 3. Bc4 {[%emt 0:00:35]} Bc5 {[%emt 0:00:16]} 4. c3 {[%emt 0:00:43]} Nf6 {[%emt 0:00:18]} 5. d3 {[%emt 0:00:09]} d6 {[%emt 0:00:28]} 6. O-O {[%emt 0:00:51]} a5 {[%emt 0:00:20]} 7. Re1 {[%emt 0:01:02]} O-O {[%emt 0:00:40]} 8. h3 {[%emt 0:01:02]} h6 {[%emt 0:00:40]} 9. a3 {[%emt 0:02:09]} Bb6 {[%emt 0:09:54]} 10. Nbd2 {[%emt 0:03:17]} Ne7 {[%emt 0:01:20]} 11. Bb3 {[%emt 0:03:30]} c6 {[%emt 0:00:31]} 12. d4 {[%emt 0:07:47]} Ng6 {[%emt 0:00:39]} 13. Bc2 {[%emt 0:01:18]} Re8 {[%emt 0:06:53]} 14. Nf1 {[%emt 0:02:56]} exd4 {[%emt 0:21:55]} 15. cxd4 {[%emt 0:01:49]} d5 {[%emt 0:00:16]} 16. e5 {[%emt 0:03:07]} Ne4 $1 {[%emt 0:01:53]} 17. N1d2 {[%emt 0:22:34]} Nxd2 {[%emt 0:30:25]} 18. Bxd2 {[%emt 0:00:09]} Be6 {[%emt 0:01:49]} 19. Be3 {[%emt 0:04:03]} Qd7 {[%emt 0:01:24]} 20. Qd3 {[%emt 0:08:44]} Bd8 {[%emt 0:00:09]} 21. Nh2 {[%emt 0:03:30]} Nf8 {[%emt 0:01:53]} 22. Nf1 {[%emt 0:02:24]} (22. g4 $142) 22... Bh4 {[%emt 0:02:22]} 23. Rac1 {[%emt 0:03:39]} f5 {[%emt 0:02:30]} ({Black should try} 23... f6) 24. Ng3 $16 {[%emt 0:05:07]} Bxg3 {[%emt 0:01:09]} 25. fxg3 {[%emt 0:00:01]} Re7 {[%emt 0:00:31]} 26. Rf1 {[%emt 0:02:08]} Rf7 {[%emt 0:01:28]} 27. Bd2 {[%emt 0:00:20]} b6 {[%emt 0:03:33]} 28. Ba4 {[%emt 0:03:29]} b5 {[%emt 0:00:14]} (28... Rc8 $16 29. Qa6 b5) 29. Bc2 {[%emt 0:00:05]} Ra7 {[%emt 0:01:51]} 30. Rf2 {[%emt 0:00:39]} Qd8 {[%emt 0:00:38]} 31. Rcf1 {[%emt 0:01:47]} Qc8 {[%emt 0:01:32]} 32. Kh2 {[%emt 0:00:43]} Qd8 {[%emt 0:00:16]} 33. Qe3 {[%emt 0:00:52]} Qc8 {[%emt 0:00:39]} 34. Qe1 {[%emt 0:00:14]} Qd8 {[%emt 0:02:54]} 35. Rf3 {[%emt 0:02:58]} Qb6 {[%emt 0:00:39]} 36. Qf2 {[%emt 0:00:42]} Qd8 {[%emt 0:02:09]} 37. Bb1 {[%emt 0:03:44]} Qe8 {[%emt 0:00:21]} 38. Bd3 {[%emt 0:03:08]} Qc8 {[%emt 0:01:11]} 39. Rc1 {[%emt 0:00:26]} (39. Bxf5 Bxf5 40. Rxf5 Rxf5 41. Qxf5 Qxf5 42. Rxf5 Ne6 $11) 39... Qe8 {[%emt 0:01:53]} 40. Qe1 {[%emt 0:02:13]} Qa8 {[%emt 0:00:30]} 41. Qd1 {[%emt 0:32:19]} Qe8 {[%emt 0:08:09]} 42. Qc2 {[%emt 0:00:00]} Bd7 {[%emt 0:00:44]} 43. Be3 {[%emt 0:00:00]} Qe6 {[%emt 0:04:28]} (43... Rb7 $142 44. Rcf1 (44. Bxf5 Bxf5 45. Rxf5 Rxf5 $16) 44... Be6) 44. Rcf1 $18 {[%emt 0:00:00]} Qe8 {[%emt 0:03:46]} 45. g4 {[%emt 0:00:00]} ({Weaker is} 45. Bxf5 Bxf5 46. Rxf5 Rxf5 47. Qxf5 a4 $16) 45... f4 {[%emt 0:00:47]} 46. Bxf4 {[%emt 0:00:00]} ({Don't do} 46. Rxf4 Rxf4 47. Rxf4 Rb7) 46... Be6 {[%emt 0:00:08]} 47. Bd2 {[%emt 0:00:00]} Qa8 {[%emt 0:03:11]} 48. Bf5 {[%emt 0:00:00]} Qe8 {[%emt 0:00:21]} 49. Qc5 {[%emt 0:00:00]} Qc8 {[%emt 0:01:37]} 50. Qd6 {[%emt 0:00:00]} Qe8 {[%emt 0:00:21]} 51. Rc1 {[%emt 0:00:00]} Bd7 {[%emt 0:01:02]} 52. Bxd7 {[%emt 0:00:00]} Rfxd7 {[%emt 0:00:46]} 53. Qxc6 {[%emt 0:00:00]} Ne6 {[%emt 0:00:06]} 54. Rcf1 {[%emt 0:00:00]} ({Not} 54. Qxb5 Nxd4 55. Qd3 Nxf3+ 56. gxf3 Qxe5+ 57. f4 Qe4 58. Rc8+ Kh7 59. Qxe4+ dxe4 $17) 54... Rac7 {[%emt 0:02:24]} 55. Qb6 {[%emt 0:00:00]} Kh7 {[%emt 0:02:58]} 56. Qxb5 {[%emt 0:00:00]} Rc4 {[%emt 0:00:13]} 57. Rf7 {[%emt 0:00:00]} Rd8 {[%emt 0:01:56]} 58. Qxe8 {[%emt 0:04:38]} Rxe8 {[%emt 0:00:04]} 59. Bc3 {[%emt 0:00:57]} Nxd4 {[%emt 0:00:36]} 60. Rd1 {[%emt 0:00:48]} Ne2 {[%emt 0:01:07]} 61. Rxd5 {[%emt 0:00:55]} Nxc3 {[%emt 0:00:30]} 62. bxc3 {[%emt 0:00:07]} Re6 {[%emt 0:00:40]} 63. Rxa5 {[%emt 0:00:50]} Rxc3 {[%emt 0:00:08]} 64. Raa7 {[%emt 0:02:05]} Rg6 {[%emt 0:00:02]} 65. Rf2 {[%emt 0:01:12]} Re3 {[%emt 0:00:19]} 66. Ra5 {[%emt 0:00:05]} Re6 {[%emt 0:02:19]} 67. Ra2 {[%emt 0:00:08]} R6xe5 {[%emt 0:00:35]} 68. Rxe5 {[%emt 0:00:03]} Rxe5 {[%emt 0:00:05]} 69. a4 {[%emt 0:00:10]} Ra5 {[%emt 0:00:04]} 70. Kg3 {[%emt 0:00:07]} Kg6 {[%emt 0:00:15]} 71. Kf4 {[%emt 0:00:14]} Kf6 {[%emt 0:00:07]} 72. Ke4 {[%emt 0:00:25]} Ke6 {[%emt 0:00:05]} 73. Kd4 {[%emt 0:00:15]} Kd6 {[%emt 0:00:06]} 74. Kc4 {[%emt 0:00:04]} Kc6 {[%emt 0:00:35]} 75. Kb4 {[%emt 0:00:40]} Re5 {[%emt 0:03:42]} 76. a5 {[%emt 0:00:10]} Re4+ {[%emt 0:00:23]} (76... Kb7 $142 77. Rd2 Kc6) 77. Kc3 $18 {[%emt 0:00:02]} Kb7 {[%emt 0:00:42]} 78. a6+ {[%emt 0:00:04]} Ka7 {[%emt 0:00:07]} 79. Kd3 {[%emt 0:00:11]} Rb4 {[%emt 0:00:48]} 80. Ke3 {[%emt 0:00:56]} g5 {[%emt 0:01:37]} (80... Rb6 $142 81. Ke4 Rf6) 81. Rf2 $18 {[%emt 0:01:54]} Rb6 {[%emt 0:00:05]} 82. Ke4 {[%emt 0:00:14]} Kxa6 {[%emt 0:01:34]} 83. Ke5 {[%emt 0:00:02]} Kb7 {[%emt 0:00:27]} 84. Rf6 {[%emt 0:00:34]} Rb5+ {[%emt 0:00:06]} 85. Ke6 {[%emt 0:00:20]} Kc7 {[%emt 0:00:15]} 86. Kf7 {[%emt 0:00:09]} Rb2 {[%emt 0:00:30]} 87. Rxh6 {[%emt 0:00:06]} Kd7 {[%emt 0:00:08]} 88. Kf6 {[%emt 0:00:13]} Rxg2 {[%emt 0:00:09]} 89. Kxg5 {[%emt 0:00:06]} Ke7 {[%emt 0:00:04]} 90. Rh7+ {[%emt 0:00:30]} Kf8 {[%emt 0:00:05]} 91. h4 {[%emt 0:00:11]} Ra2 {[%emt 0:00:14]} 92. h5 {[%emt 0:00:47]} Ra5+ {[%emt 0:00:08]} 93. Kh4 {[%emt 0:00:03]} Kg8 {[%emt 0:00:12]} 94. Rb7 {[%emt 0:00:03]} Ra4 {[%emt 0:00:27]} 95. h6 {[%emt 0:00:06]} Ra1 {[%emt 0:00:52]} 96. Kh5 {[%emt 0:00:07]} Ra6 {[%emt 0:00:13]} 97. Rb5 {[%emt 0:00:38]} Kh7 {[%emt 0:00:21] [#]} 98. g5 $1 {[%emt 0:00:06]} Ra8 {[%emt 0:00:23]} 99. g6+ {[%emt 0:00:07]} Kg8 {[%emt 0:00:09]} 100. Kg5 {[%emt 0:00:06]} Rf8 {[%emt 0:00:27]} 101. Rf5 {[%emt 0:00:15]} Ra8 {[%emt 0:00:07]} 102. h7+ {[%emt 0:00:21]} Kh8 {[%emt 0:00:17]} 103. Kh6 {[%emt 0:00:04]} 1-0

[Event "Summer Chess Classic-B 2022"]
[Site "Saint Louis"]
[Date "2022.06.06"]
[Round "5.2"]
[White "Checa, Nicolas"]
[Black "Ali Marandi, Cemil Can"]
[Result "0-1"]
[ECO "E97"]
[WhiteElo "2533"]
[BlackElo "2532"]
[Annotator "TA"]
[PlyCount "86"]
[EventDate "2022.05.31"]
[EventType "tourn"]
[EventCountry "USA"]
[SourceTitle "playchess.com"]
[Source "ChessBase"]
[SourceQuality "1"]
[TimeControl "40/5400+30:1800+30"]

{[%evp 14,86,52,35,65,57,60,56,58,62,66,33,35,37,31,0,22,3,10,0,0,-13,-22,-49,-20,-25,-29,-52,-45,-66,-63,-34,0,-76,-62,-103,-45,-74,-39,-144,-27,-132,-123,-119,-14,-28,-23,-88,-35,-344,-306,-315,-313,-320,-282,-5783,-236,-233,-214,-419,-379,-401,-335,-326,-335,-537,-396,-375,-381,-1683,-1625,-1329,-1108,-29995,-29996]} 1. d4 {[%emt 0:05:30]} Nf6 {[%emt 0:00:08]} 2. c4 {[%emt 0:00:05]} g6 {[%emt 0:00:12]} 3. Nc3 {[%emt 0:00:07]} Bg7 {[%emt 0:00:06]} 4. e4 {[%emt 0:00:06]} d6 {[%emt 0:00:06]} 5. Nf3 {[%emt 0:00:04]} O-O {[%emt 0:00:08]} 6. Be2 {[%emt 0:00:04]} e5 {[%emt 0:00:07]} 7. O-O {[%emt 0:00:05]} Nc6 {[%emt 0:00:07]} 8. Be3 {[%emt 0:00:49]} b6 {[%emt 0:00:07] E97: King's Indian: Classical Main Line (6...e5 7 0-0 Nc6): 8 Be3 and 8 d5 Ne7, not 9 Ne1.} 9. d5 {[%emt 0:06:22]} Ne7 {[%emt 0:00:32]} 10. Nd2 {[%emt 0:00:52] [#]} Ne8 $146 {[%emt 0:04:54] White is slightly better.} ({Predecessor:} 10... c5 11. Qc2 Ng4 12. Bxg4 Bxg4 13. f3 Bd7 14. a3 f5 15. b4 fxe4 16. Ndxe4 Nf5 17. Qd3 {½-½ (32) Galanov,S (2589)-Siikaluoma,A (2517) ICCF email 2010}) 11. b4 {[%emt 0:00:22][%cal Bb2b4,Bb4b5][%mdl 32]} c5 {[%emt 0:01:16]} 12. dxc6 {[%emt 0:03:41]} Nxc6 {[%emt 0:00:14]} 13. b5 {[%emt 0:01:04]} Nd4 {[%emt 0:04:30]} 14. Nb3 {[%emt 0:00:24][%cal Rb3d4]} Nxe2+ {[%emt 0:01:01]} 15. Qxe2 {[%emt 0:00:04]} f5 {[%emt 0:03:44]} 16. exf5 {[%emt 0:03:17]} gxf5 {[%emt 0:02:37]} 17. f4 {[%emt 0:00:44]} Be6 {[%emt 0:02:54]} 18. Rad1 {[%emt 0:08:11]} (18. fxe5 {feels hotter.} Rc8 19. c5 Bxe5 20. Nd4) 18... Qc7 {[%emt 0:03:13]} 19. Nd5 {[%emt 0:00:19]} Qf7 {[%emt 0:00:18]} 20. Bc1 {[%emt 0:06:29]} Nf6 $1 {[%emt 0:04:30][%cal Rf6d5]} 21. Ne3 {[%emt 0:10:41]} Ne4 {[%emt 0:17:14]} 22. Bb2 {[%emt 0:01:06] Prevents Nc3.} Rac8 {[%emt 0:00:36][%cal Re6c4]} 23. Nd5 {[%emt 0:01:13]} (23. Nd2 $11 {remains equal.}) 23... Rfe8 $17 {[%emt 0:00:34] ...Bxd5 is the strong threat.} 24. Qd3 {[%emt 0:12:27]} Kh8 {[%emt 0:08:42]} (24... Bh6 $1 $17 {aiming for ...Bxf4.} 25. fxe5 dxe5) 25. Kh1 {[%emt 0:13:09]} Rg8 {[%emt 0:06:03]} 26. Rc1 {[%emt 0:05:58]} (26. Qe2 $15) 26... Rce8 {[%emt 0:06:35]} (26... a6 $1 $17 {[%cal Ra6b5] Strongly threatening ...axb5.} 27. Nd2 (27. Nxb6 $2 Rb8 $19) (27. bxa6 $2 b5 $19) 27... axb5 28. Nxe4 fxe4) 27. Ne3 {[%emt 0:03:31]} (27. Rc2 $11) 27... Qh5 {[%emt 0:03:09]} 28. Kg1 {[%emt 0:00:27]} Re7 {[%emt 0:02:59]} (28... Qh4 $17) 29. Qd1 {[%emt 0:05:19]} Qg6 $36 {[%emt 0:03:04][%mdl 2048] White is under pressure.} 30. Qf3 {[%emt 0:00:58]} (30. Rc2 $1 $11) 30... Rf7 {[%emt 0:01:30] Black is more active.} ({Better is} 30... exf4 $17 31. Bxg7+ Qxg7 32. Qxf4 d5 33. cxd5 Bxd5) 31. Rcd1 $2 {[%emt 0:02:54][%mdl 8192] Now White is beyond hope.} ({White should try} 31. Qe2 $15) 31... exf4 $19 {[%emt 0:01:58]} 32. Bxg7+ {[%emt 0:00:36]} Rfxg7 {[%emt 0:00:11]} ({Stronger than} 32... Rgxg7 33. Qxf4 Bxc4 34. Rfe1 $17) 33. Qxf4 {[%emt 0:00:07]} Bxc4 $1 {[%emt 0:00:28]} 34. Nd4 $2 {[%emt 0:01:55] [#]} (34. g3 Bxf1 35. Rxf1) 34... Bxf1 $2 {[%emt 0:01:52]} (34... Qxg2+ $3 {[%mdl 512]} 35. Nxg2 Rxg2+ 36. Kh1 Bd5 37. Qxe4 Bxe4 38. Nf3 {[#]} Rg1+ $3 {[%mdl 512]} 39. Rxg1 Bxf3+ 40. Rg2 Bxg2+ 41. Kg1 Bf3+ 42. Kf2 Bxd1 43. Ke3 Re8+ 44. Kf2 d5 45. Kg3 d4 46. a4 Bxa4 47. h3 d3 48. Kg2 Bxb5 49. Kh2 d2 50. h4 d1=Q 51. Kh3 Qg4+ 52. Kh2 Re2+ 53. Kh1 Qg2#) 35. Rxf1 {[%emt 0:00:06]} Ng5 {[%emt 0:04:07] ( -> ...Nh3+)} 36. Qh4 {[%emt 0:02:00] Prevents Nh3+.} (36. Qxf5 Rf7 37. Qxg6 Rxf1+ 38. Kxf1 hxg6 39. Ke2) 36... f4 {[%emt 0:03:54]} 37. Rxf4 {[%emt 0:00:06]} Qb1+ {[%emt 0:00:15]} 38. Rf1 {[%emt 0:00:26]} Qxa2 {[%emt 0:00:38] And now ...Qd2 would win.} 39. Qg4 $2 {[%emt 0:02:28] [#]} (39. g3) 39... Ne6 $1 {[%emt 0:07:49][%mdl 512]} 40. Qe4 {[%emt 0:00:21]} Qa4 {[%emt 0:01:48]} 41. Nef5 {[%emt 0:35:13]} (41. Qxe6 Qxd4 42. g3) 41... Rxg2+ {[%emt 0:30:58]} 42. Kh1 {[%emt 0:00:04] [#]} Qa2 $1 {[%emt 0:00:00][%csl Ga2][%cal Rg2h2]} 43. Qh4 {[%emt 0:00:00] [#]} (43. Nf3 R2g4) 43... Rg1+ $3 {[%emt 0:00:00][%mdl 512] Weighted Error Value: White=1.01/Black=0.45} 0-1